fUST/lending_fUST_20260701
["ID","MTS","AMOUNT","RATE_DAILY","PERIOD"]
[426809182,1782858640000,-500.0,0.00029863,7]
[426809158,1782858640000,-500.0,0.00029863,7]
[426809155,1782858640000,-500.0,0.00029863,7]
[426809179,1782858640000,-500.0,0.00029863,7]
[426809159,1782858640000,-500.0,0.00029863,7]
[426809156,1782858640000,-500.0,0.00029863,7]
[426809125,1782858640000,-500.0,0.00029863,7]
[426809134,1782858640000,-502.60977958,0.00029863,7]
[426809126,1782858640000,-527.36033622,0.00029863,7]
[426809128,1782858640000,-502.69371306,0.00029863,7]
[426809131,1782858640000,-500.0,0.00029863,7]
[426809135,1782858640000,-502.57092207,0.00029863,7]
[426809130,1782858640000,-236.96,0.00029863,7]
[426809127,1782858640000,-500.0,0.00029863,7]
[426809132,1782858640000,-503.01936553,0.00029863,7]
[426809133,1782858640000,-500.0,0.00029863,7]
[426809129,1782858640000,-500.0,0.00029863,7]
[426809137,1782858640000,-500.0,0.00029863,7]
[426809145,1782858640000,-500.0,0.00029863,7]
[426809116,1782858640000,-500.0,0.00029863,7]
[426809146,1782858640000,-500.0,0.00029863,7]
[426809138,1782858640000,-500.0,0.00029863,7]
[426809151,1782858640000,-502.63265209,0.00029863,7]
[426809150,1782858640000,-203.15,0.00029863,7]
[426809148,1782858640000,-500.0,0.00029863,7]
[426809140,1782858640000,-500.0,0.00029863,7]
[426809143,1782858640000,-500.0,0.00029863,7]
[426809152,1782858640000,-503.77262068,0.00029863,7]
[426809144,1782858640000,-500.0,0.00029863,7]
[426809142,1782858640000,-500.0,0.00029863,7]
[426809139,1782858640000,-500.0,0.00029863,7]
[426809136,1782858640000,-502.99080783,0.00029863,7]
[426809147,1782858640000,-500.0,0.00029863,7]
[426809141,1782858640000,-500.0,0.00029863,7]
[426809236,1782858641000,-500.0,0.00029863,7]
[426809222,1782858641000,-505.65188461,0.00029863,7]
[426809221,1782858641000,-500.0,0.00029863,7]
[426809220,1782858641000,-500.0,0.00029863,7]
[426809216,1782858641000,-500.0,0.00029863,7]
[426809211,1782858641000,-500.0,0.00029863,7]
[426809215,1782858641000,-460.5569888,0.00029863,7]
[426809214,1782858641000,-500.0,0.00029863,7]
[426809212,1782858641000,-503.95674374,0.00029863,7]
[426809224,1782858641000,-501.54041045,0.00029863,7]
[426809219,1782858641000,-502.25037702,0.00029863,7]
[426809213,1782858641000,-500.0,0.00029863,7]
[426809232,1782858641000,-500.0,0.00029863,7]
[426809228,1782858641000,-500.0,0.00029863,7]
[426809229,1782858641000,-500.0,0.00029863,7]
[426809227,1782858641000,-503.22585056,0.00029863,7]
[426809230,1782858641000,-500.0,0.00029863,7]
[426809233,1782858641000,-500.0,0.00029863,7]
[426809231,1782858641000,-500.0,0.00029863,7]
[426809240,1782858641000,-500.0,0.00029863,7]
[426809238,1782858641000,-500.0,0.00029863,7]
[426809239,1782858641000,-500.0,0.00029863,7]
[426809234,1782858641000,-168.04,0.00029863,7]
[426809237,1782858641000,-502.07931659,0.00029863,7]
[426809209,1782858641000,-500.0,0.00029863,7]
[426809226,1782858641000,-500.0,0.00029863,7]
[426809210,1782858641000,-160.76,0.00029863,7]
[426809196,1782858641000,-500.0,0.00029863,7]
[426809208,1782858641000,-500.0,0.00029863,7]
[426809183,1782858641000,-189.17,0.00029863,7]
[426809186,1782858641000,-500.0,0.00029863,7]
[426809185,1782858641000,-502.12457164,0.00029863,7]
[426809184,1782858641000,-501.11259907,0.00029863,7]
[426809188,1782858641000,-500.0,0.00029863,7]
[426809198,1782858641000,-501.99656363,0.00029863,7]
[426809199,1782858641000,-500.0,0.00029863,7]
[426809187,1782858641000,-207.71,0.00029863,7]
[426809189,1782858641000,-501.88354278,0.00029863,7]
[426809190,1782858641000,-500.0,0.00029863,7]
[426809191,1782858641000,-501.80102756,0.00029863,7]
[426809195,1782858641000,-500.0,0.00029863,7]
[426809194,1782858641000,-500.0,0.00029863,7]
[426809192,1782858641000,-500.0,0.00029863,7]
[426809193,1782858641000,-500.0,0.00029863,7]
[426809197,1782858641000,-502.92931147,0.00029863,7]
[426809201,1782858641000,-500.0,0.00029863,7]
[426809202,1782858641000,-500.0,0.00029863,7]
[426809200,1782858641000,-500.0,0.00029863,7]
[426809205,1782858641000,-500.0,0.00029863,7]
[426809206,1782858641000,-500.0,0.00029863,7]
[426809204,1782858641000,-345.9318919,0.00029863,7]
[426809207,1782858641000,-504.34202484,0.00029863,7]
[426809203,1782858641000,-500.79896645,0.00029863,7]
[426809217,1782858641000,-500.0,0.00029863,7]
[426809218,1782858641000,-500.0,0.00029863,7]
[426809235,1782858641000,-500.0,0.00029863,7]
[426809225,1782858641000,-501.49824077,0.00029863,7]
[426809242,1782858641000,-500.0,0.00029863,7]
[426809278,1782858641000,-502.20236676,0.00029863,7]
[426809275,1782858641000,-501.97939834,0.00029863,7]
[426809276,1782858641000,-502.42384491,0.00029863,7]
[426809268,1782858641000,-503.19379599,0.00029863,7]
[426809277,1782858641000,-500.0,0.00029863,7]
[426809273,1782858641000,-500.0,0.00029863,7]
[426809280,1782858641000,-500.0,0.00029863,7]
[426809279,1782858641000,-501.37355024,0.00029863,7]
[426809282,1782858641000,-500.0,0.00029863,7]
[426809281,1782858641000,-500.0,0.00029863,7]
[426809287,1782858641000,-500.0,0.00029863,7]
[426809289,1782858641000,-500.0,0.00029863,7]
[426809291,1782858641000,-500.0,0.00029863,7]
[426809284,1782858641000,-500.0,0.00029863,7]
[426809288,1782858641000,-500.0,0.00029863,7]
[426809285,1782858641000,-496.74,0.00029863,7]
[426809283,1782858641000,-500.0,0.00029863,7]
[426809290,1782858641000,-501.02701503,0.00029863,7]
[426809286,1782858641000,-500.0,0.00029863,7]
[426809294,1782858641000,-502.53239215,0.00029863,7]
[426809292,1782858641000,-500.0,0.00029863,7]
[426809295,1782858641000,-500.0,0.00029863,7]
[426809296,1782858641000,-501.5861026,0.00029863,7]
[426809293,1782858641000,-500.0,0.00029863,7]
[426809297,1782858641000,-502.01533738,0.00029863,7]
[426809298,1782858641000,-615.78,0.00029863,7]
[426809241,1782858641000,-500.0,0.00029863,7]
[426809274,1782858641000,-500.0,0.00029863,7]
[426809272,1782858641000,-502.32754364,0.00029863,7]
[426809223,1782858641000,-500.0,0.00029863,7]
[426809269,1782858641000,-500.0,0.00029863,7]
[426809245,1782858641000,-500.0,0.00029863,7]
[426809252,1782858641000,-503.56794363,0.00029863,7]
[426809246,1782858641000,-500.0,0.00029863,7]
[426809243,1782858641000,-500.0,0.00029863,7]
[426809248,1782858641000,-575.66726176,0.00029863,7]
[426809247,1782858641000,-500.0,0.00029863,7]
[426809249,1782858641000,-501.19186614,0.00029863,7]
[426809251,1782858641000,-500.0,0.00029863,7]
[426809253,1782858641000,-500.0,0.00029863,7]
[426809250,1782858641000,-500.0,0.00029863,7]
[426809255,1782858641000,-501.54797272,0.00029863,7]
[426809265,1782858641000,-501.32447188,0.00029863,7]
[426809259,1782858641000,-503.6677268,0.00029863,7]
[426809244,1782858641000,-500.0,0.00029863,7]
[426809271,1782858641000,-502.52092568,0.00029863,7]
[426809257,1782858641000,-500.0,0.00029863,7]
[426809270,1782858641000,-500.0,0.00029863,7]
[426809267,1782858641000,-500.0,0.00029863,7]
[426809266,1782858641000,-502.23553781,0.00029863,7]
[426809262,1782858641000,-500.85792316,0.00029863,7]
[426809264,1782858641000,-500.0,0.00029863,7]
[426809258,1782858641000,-500.0,0.00029863,7]
[426809261,1782858641000,-500.0,0.00029863,7]
[426809256,1782858641000,-500.0,0.00029863,7]
[426809254,1782858641000,-501.95958888,0.00029863,7]
[426809263,1782858641000,-502.72113229,0.00029863,7]
[426809260,1782858641000,-500.0,0.00029863,7]
[426809332,1782858642000,-500.74614868,0.00029863,7]
[426809337,1782858642000,-500.0,0.00029863,7]
[426809336,1782858642000,-500.0,0.00029863,7]
[426809340,1782858642000,-500.0,0.00029863,7]
[426809331,1782858642000,-500.0,0.00029863,7]
[426809329,1782858642000,-500.0,0.00029863,7]
[426809334,1782858642000,-500.0,0.00029863,7]
[426809338,1782858642000,-500.0,0.00029863,7]
[426809339,1782858642000,-500.0,0.00029863,7]
[426809341,1782858642000,-500.0,0.00029863,7]
[426809335,1782858642000,-500.0,0.00029863,7]
[426809333,1782858642000,-550.58,0.00029863,7]
[426809342,1782858642000,-500.0,0.00029863,7]
[426809343,1782858642000,-556.08,0.00029863,7]
[426809346,1782858642000,-501.22198928,0.00029863,7]
[426809344,1782858642000,-500.0,0.00029863,7]
[426809345,1782858642000,-501.25292385,0.00029863,7]
[426809352,1782858642000,-500.0,0.00029863,7]
[426809355,1782858642000,-500.0,0.00029863,7]
[426809350,1782858642000,-503.7090394,0.00029863,7]
[426809349,1782858642000,-503.31579691,0.00029863,7]
[426809351,1782858642000,-500.0,0.00029863,7]
[426809356,1782858642000,-427.31,0.00029863,7]
[426809358,1782858642000,-500.0,0.00029863,7]
[426809367,1782858642000,-502.38713084,0.00029863,7]
[426809330,1782858642000,-538.17153644,0.00029863,7]
[426809348,1782858642000,-500.0,0.00029863,7]
[426809319,1782858642000,-500.0,0.00029863,7]
[426809311,1782858642000,-500.0,0.00029863,7]
[426809324,1782858642000,-501.00455235,0.00029863,7]
[426809303,1782858642000,-500.0,0.00029863,7]
[426809299,1782858642000,-502.18909715,0.00029863,7]
[426809300,1782858642000,-502.69794312,0.00029863,7]
[426809301,1782858642000,-500.0,0.00029863,7]
[426809302,1782858642000,-500.0,0.00029863,7]
[426809315,1782858642000,-500.0,0.00029863,7]
[426809305,1782858642000,-541.79405749,0.00029863,7]
[426809306,1782858642000,-452.7,0.00029863,7]
[426809304,1782858642000,-500.0,0.00029863,7]
[426809308,1782858642000,-500.0,0.00029863,7]
[426809310,1782858642000,-500.0,0.00029863,7]
[426809309,1782858642000,-500.0,0.00029863,7]
[426809307,1782858642000,-500.0,0.00029863,7]
[426809313,1782858642000,-500.0,0.00029863,7]
[426809314,1782858642000,-500.0,0.00029863,7]
[426809357,1782858642000,-502.28213172,0.00029863,7]
[426809312,1782858642000,-500.0,0.00029863,7]
[426809316,1782858642000,-172.94,0.00029863,7]
[426809323,1782858642000,-500.75319264,0.00029863,7]
[426809317,1782858642000,-500.0,0.00029863,7]
[426809327,1782858642000,-500.0,0.00029863,7]
[426809325,1782858642000,-500.0,0.00029863,7]
[426809328,1782858642000,-234.36443428,0.00029863,7]
[426809326,1782858642000,-505.31245635,0.00029863,7]
[426809322,1782858642000,-500.0,0.00029863,7]
[426809318,1782858642000,-500.0,0.00029863,7]
[426809320,1782858642000,-500.0,0.00029863,7]
[426809321,1782858642000,-500.0,0.00029863,7]
[426809370,1782858642000,-502.12379239,0.00029863,7]
[426809347,1782858642000,-500.0,0.00029863,7]
[426809369,1782858642000,-502.59408211,0.00029863,7]
[426809397,1782858642000,-500.0,0.00029863,7]
[426809396,1782858642000,-500.0,0.00029863,7]
[426809391,1782858642000,-500.0,0.00029863,7]
[426809400,1782858642000,-631.9652068,0.00029863,7]
[426809394,1782858642000,-501.43211589,0.00029863,7]
[426809399,1782858642000,-500.0,0.00029863,7]
[426809392,1782858642000,-500.0,0.00029863,7]
[426809395,1782858642000,-524.61197613,0.00029863,7]
[426809405,1782858642000,-500.0,0.00029863,7]
[426809403,1782858642000,-500.0,0.00029863,7]
[426809406,1782858642000,-500.0,0.00029863,7]
[426809409,1782858642000,-501.03985406,0.00029863,7]
[426809408,1782858642000,-500.0,0.00029863,7]
[426809393,1782858642000,-504.22200164,0.00029863,7]
[426809410,1782858642000,-572.07952376,0.00029863,7]
[426809411,1782858642000,-222.78020616,0.00029863,7]
[426809407,1782858642000,-500.0,0.00029863,7]
[426809412,1782858642000,-500.0,0.00029863,7]
[426809414,1782858642000,-500.0,0.00029863,7]
[426809416,1782858642000,-412.1,0.00029863,7]
[426809413,1782858642000,-500.0,0.00029863,7]
[426809418,1782858642000,-500.0,0.00029863,7]
[426809420,1782858642000,-501.9940954,0.00029863,7]
[426809419,1782858642000,-500.0,0.00029863,7]
[426809421,1782858642000,-500.0,0.00029863,7]
[426809368,1782858642000,-503.60972056,0.00029863,7]
[426809425,1782858642000,-500.0,0.00029863,7]
[426809423,1782858642000,-500.0,0.00029863,7]
[426809404,1782858642000,-500.0,0.00029863,7]
[426809398,1782858642000,-212.25,0.00029863,7]
[426809427,1782858642000,-502.06503534,0.00029863,7]
[426809401,1782858642000,-501.93613449,0.00029863,7]
[426809402,1782858642000,-500.0,0.00029863,7]
[426809359,1782858642000,-304.21,0.00029863,7]
[426809361,1782858642000,-500.0,0.00029863,7]
[426809360,1782858642000,-503.7372942,0.00029863,7]
[426809363,1782858642000,-500.0,0.00029863,7]
[426809364,1782858642000,-500.0,0.00029863,7]
[426809366,1782858642000,-502.78192381,0.00029863,7]
[426809365,1782858642000,-365.54,0.00029863,7]
[426809371,1782858642000,-500.0,0.00029863,7]
[426809374,1782858642000,-447.60239861,0.00029863,7]
[426809373,1782858642000,-500.0,0.00029863,7]
[426809376,1782858642000,-500.0,0.00029863,7]
[426809372,1782858642000,-500.0,0.00029863,7]
[426809362,1782858642000,-205.83,0.00029863,7]
[426809390,1782858642000,-500.0,0.00029863,7]
[426809389,1782858642000,-500.0,0.00029863,7]
[426809379,1782858642000,-500.0,0.00029863,7]
[426809388,1782858642000,-503.76792987,0.00029863,7]
[426809383,1782858642000,-500.0,0.00029863,7]
[426809377,1782858642000,-500.0,0.00029863,7]
[426809380,1782858642000,-152.30180357,0.00029863,7]
[426809384,1782858642000,-504.01822884,0.00029863,7]
[426809387,1782858642000,-502.26761368,0.00029863,7]
[426809385,1782858642000,-500.0,0.00029863,7]
[426809386,1782858642000,-500.0,0.00029863,7]
[426809381,1782858642000,-500.0,0.00029863,7]
[426809378,1782858642000,-500.0,0.00029863,7]
[426809382,1782858642000,-576.4,0.00029863,7]
[426809466,1782858643000,-500.0,0.00029863,7]
[426809472,1782858643000,-501.28117273,0.00029863,7]
[426809473,1782858643000,-580.3199576,0.00029863,7]
[426809467,1782858643000,-500.0,0.00029863,7]
[426809482,1782858643000,-302.02,0.00029863,7]
[426809469,1782858643000,-565.81618447,0.00029863,7]
[426809468,1782858643000,-504.20096798,0.00029863,7]
[426809464,1782858643000,-557.97,0.00029863,7]
[426809458,1782858643000,-500.0,0.00029863,7]
[426809471,1782858643000,-500.0,0.00029863,7]
[426809470,1782858643000,-500.0,0.00029863,7]
[426809459,1782858643000,-500.0,0.00029863,7]
[426809480,1782858643000,-502.21377224,0.00029863,7]
[426809465,1782858643000,-468.19053952,0.00029863,7]
[426809475,1782858643000,-500.0,0.00029863,7]
[426809477,1782858643000,-500.0,0.00029863,7]
[426809476,1782858643000,-515.96905393,0.00029863,7]
[426809478,1782858643000,-502.29576919,0.00029863,7]
[426809479,1782858643000,-500.0,0.00029863,7]
[426809481,1782858643000,-500.0,0.00029863,7]
[426809483,1782858643000,-500.0,0.00029863,7]
[426809484,1782858643000,-557.39,0.00029863,7]
[426809485,1782858643000,-500.0,0.00029863,7]
[426809486,1782858643000,-500.0,0.00029863,7]
[426809460,1782858643000,-500.0,0.00029863,7]
[426809474,1782858643000,-500.0,0.00029863,7]
[426809461,1782858643000,-502.07404529,0.00029863,7]
[426809450,1782858643000,-502.17726971,0.00029863,7]
[426809457,1782858643000,-500.0,0.00029863,7]
[426809487,1782858643000,-309.8,0.00029863,7]
[426809429,1782858643000,-500.0,0.00029863,7]
[426809430,1782858643000,-260.55,0.00029863,7]
[426809434,1782858643000,-500.0,0.00029863,7]
[426809437,1782858643000,-566.08272439,0.00029863,7]
[426809436,1782858643000,-502.24854195,0.00029863,7]
[426809432,1782858643000,-486.58540495,0.00029863,7]
[426809435,1782858643000,-500.0,0.00029863,7]
[426809438,1782858643000,-501.49286759,0.00029863,7]
[426809443,1782858643000,-500.0,0.00029863,7]
[426809449,1782858643000,-501.31102255,0.00029863,7]
[426809447,1782858643000,-500.0,0.00029863,7]
[426809456,1782858643000,-500.0,0.00029863,7]
[426809446,1782858643000,-501.57436182,0.00029863,7]
[426809442,1782858643000,-500.82432062,0.00029863,7]
[426809439,1782858643000,-501.74878085,0.00029863,7]
[426809440,1782858643000,-502.00949849,0.00029863,7]
[426809448,1782858643000,-500.0,0.00029863,7]
[426809445,1782858643000,-502.70160997,0.00029863,7]
[426809452,1782858643000,-500.0,0.00029863,7]
[426809453,1782858643000,-500.0,0.00029863,7]
[426809462,1782858643000,-502.74433036,0.00029863,7]
[426809463,1782858643000,-501.24035216,0.00029863,7]
[426809451,1782858643000,-500.0,0.00029863,7]
[426809455,1782858643000,-502.68962055,0.00029863,7]
[426809454,1782858643000,-290.68,0.00029863,7]
[426809444,1782858643000,-307.06,0.00029863,7]
[426809489,1782858643000,-500.0,0.00029863,7]
[426809534,1782858643000,-500.0,0.00029863,7]
[426809494,1782858643000,-500.0,0.00029863,7]
[426809521,1782858643000,-500.0,0.00029863,7]
[426809524,1782858643000,-500.0,0.00029863,7]
[426809526,1782858643000,-500.0,0.00029863,7]
[426809522,1782858643000,-502.97752719,0.00029863,7]
[426809523,1782858643000,-500.0,0.00029863,7]
[426809527,1782858643000,-500.0,0.00029863,7]
[426809528,1782858643000,-500.0,0.00029863,7]
[426809530,1782858643000,-607.98897391,0.00029863,7]
[426809529,1782858643000,-242.98906589,0.00029863,7]
[426809531,1782858643000,-512.82243143,0.00029863,7]
[426809532,1782858643000,-500.0,0.00029863,7]
[426809533,1782858643000,-194.68932233,0.00029863,7]
[426809535,1782858643000,-387.66024773,0.00029863,7]
[426809544,1782858643000,-500.0,0.00029863,7]
[426809538,1782858643000,-500.0,0.00029863,7]
[426809539,1782858643000,-500.0,0.00029863,7]
[426809543,1782858643000,-500.0,0.00029863,7]
[426809540,1782858643000,-522.36632478,0.00029863,7]
[426809542,1782858643000,-500.0,0.00029863,7]
[426809541,1782858643000,-500.0,0.00029863,7]
[426809546,1782858643000,-500.0,0.00029863,7]
[426809547,1782858643000,-500.0,0.00029863,7]
[426809545,1782858643000,-500.0,0.00029863,7]
[426809548,1782858643000,-500.0,0.00029863,7]
[426809490,1782858643000,-176.5,0.00029863,7]
[426809520,1782858643000,-500.0,0.00029863,7]
[426809518,1782858643000,-500.0,0.00029863,7]
[426809525,1782858643000,-500.0,0.00029863,7]
[426809515,1782858643000,-500.0,0.00029863,7]
[426809498,1782858643000,-500.0,0.00029863,7]
[426809492,1782858643000,-175.52,0.00029863,7]
[426809488,1782858643000,-501.25887279,0.00029863,7]
[426809495,1782858643000,-495.44,0.00029863,7]
[426809491,1782858643000,-500.0,0.00029863,7]
[426809493,1782858643000,-502.67256272,0.00029863,7]
[426809497,1782858643000,-500.0,0.00029863,7]
[426809496,1782858643000,-500.0,0.00029863,7]
[426809519,1782858643000,-500.0,0.00029863,7]
[426809507,1782858643000,-500.0,0.00029863,7]
[426809504,1782858643000,-500.0,0.00029863,7]
[426809508,1782858643000,-500.0,0.00029863,7]
[426809513,1782858643000,-500.0,0.00029863,7]
[426809506,1782858643000,-500.0,0.00029863,7]
[426809499,1782858643000,-500.0,0.00029863,7]
[426809502,1782858643000,-500.0,0.00029863,7]
[426809503,1782858643000,-500.0,0.00029863,7]
[426809512,1782858643000,-500.0,0.00029863,7]
[426809511,1782858643000,-500.0,0.00029863,7]
[426809505,1782858643000,-500.0,0.00029863,7]
[426809500,1782858643000,-500.0,0.00029863,7]
[426809501,1782858643000,-500.0,0.00029863,7]
[426809510,1782858643000,-500.0,0.00029863,7]
[426809514,1782858643000,-500.0,0.00029863,7]
[426809517,1782858643000,-503.30157058,0.00029863,7]
[426809509,1782858643000,-500.0,0.00029863,7]
[426809516,1782858643000,-500.0,0.00029863,7]
[426809572,1782858644000,-500.0,0.00029863,7]
[426809586,1782858644000,-500.0,0.00029863,7]
[426809588,1782858644000,-500.0,0.00029863,7]
[426809584,1782858644000,-500.0,0.00029863,7]
[426809587,1782858644000,-503.11699805,0.00029863,7]
[426809594,1782858644000,-500.0,0.00029863,7]
[426809582,1782858644000,-500.0,0.00029863,6]
[426809585,1782858644000,-391.91938312,0.00029863,7]
[426809595,1782858644000,-500.0,0.00029863,7]
[426809581,1782858644000,-500.0,0.00029863,6]
[426809589,1782858644000,-415.17,0.00029863,7]
[426809593,1782858644000,-500.0,0.00029863,7]
[426809590,1782858644000,-500.0,0.00029863,7]
[426809604,1782858644000,-500.0,0.00029863,7]
[426809591,1782858644000,-500.0,0.00029863,7]
[426809596,1782858644000,-500.0,0.00029863,7]
[426809598,1782858644000,-591.49,0.00029863,7]
[426809602,1782858644000,-500.0,0.00029863,7]
[426809600,1782858644000,-500.0,0.00029863,7]
[426809603,1782858644000,-500.0,0.00029863,7]
[426809597,1782858644000,-646.9,0.00029863,7]
[426809599,1782858644000,-500.0,0.00029863,7]
[426809601,1782858644000,-500.0,0.00029863,7]
[426809605,1782858644000,-639.07,0.00029863,7]
[426809607,1782858644000,-500.0,0.00029863,7]
[426809606,1782858644000,-500.0,0.00029863,7]
[426809576,1782858644000,-500.0,0.00029863,7]
[426809592,1782858644000,-500.0,0.00029863,7]
[426809579,1782858644000,-600.97,0.00029863,7]
[426809550,1782858644000,-593.08,0.00029863,7]
[426809583,1782858644000,-500.0,0.00029863,7]
[426809608,1782858644000,-311.85,0.00029863,7]
[426809556,1782858644000,-500.0,0.00029863,7]
[426809552,1782858644000,-500.0,0.00029863,7]
[426809555,1782858644000,-500.0,0.00029863,7]
[426809551,1782858644000,-500.0,0.00029863,7]
[426809554,1782858644000,-519.49695703,0.00029863,7]
[426809557,1782858644000,-500.0,0.00029863,7]
[426809553,1782858644000,-500.0,0.00029863,7]
[426809549,1782858644000,-500.0,0.00029863,7]
[426809570,1782858644000,-500.0,0.00029863,7]
[426809569,1782858644000,-500.0,0.00029863,7]
[426809568,1782858644000,-500.0,0.00029863,7]
[426809558,1782858644000,-500.0,0.00029863,7]
[426809578,1782858644000,-437.18207902,0.00029863,7]
[426809560,1782858644000,-500.0,0.00029863,7]
[426809564,1782858644000,-500.0,0.00029863,7]
[426809559,1782858644000,-500.0,0.00029863,7]
[426809562,1782858644000,-500.0,0.00029863,7]
[426809565,1782858644000,-500.0,0.00029863,7]
[426809563,1782858644000,-500.0,0.00029863,7]
[426809566,1782858644000,-500.0,0.00029863,7]
[426809567,1782858644000,-300.60567471,0.00029863,7]
[426809571,1782858644000,-375.87142124,0.00029863,7]
[426809573,1782858644000,-500.0,0.00029863,7]
[426809577,1782858644000,-500.0,0.00029863,7]
[426809574,1782858644000,-500.0,0.00029863,7]
[426809575,1782858644000,-500.0,0.00029863,7]
[426809580,1782858644000,-500.0,0.00029863,7]
[426809561,1782858644000,-205.64910257,0.00029863,7]
[426809609,1782858644000,-376.38,0.00029863,7]
[426809653,1782858644000,-500.0,0.00029863,7]
[426809613,1782858644000,-264.51751627,0.00029863,7]
[426809641,1782858644000,-500.0,0.00029863,7]
[426809635,1782858644000,-500.0,0.00029863,7]
[426809643,1782858644000,-500.0,0.00029863,7]
[426809638,1782858644000,-500.0,0.00029863,7]
[426809644,1782858644000,-500.0,0.00029863,7]
[426809669,1782858644000,-500.0,0.00029863,7]
[426809649,1782858644000,-534.97517516,0.00029863,7]
[426809651,1782858644000,-559.68094971,0.00029863,7]
[426809660,1782858644000,-266.77,0.00029863,7]
[426809652,1782858644000,-504.62,0.00029863,7]
[426809659,1782858644000,-500.0,0.00029863,7]
[426809650,1782858644000,-503.8723615,0.00029863,7]
[426809658,1782858644000,-500.0,0.00029863,7]
[426809654,1782858644000,-500.0,0.00029863,7]
[426809657,1782858644000,-500.0,0.00029863,7]
[426809655,1782858644000,-500.0,0.00029863,7]
[426809661,1782858644000,-500.0,0.00029863,7]
[426809656,1782858644000,-228.24,0.00029863,7]
[426809662,1782858644000,-500.0,0.00029863,7]
[426809663,1782858644000,-500.0,0.00029863,7]
[426809664,1782858644000,-202.15,0.00029863,7]
[426809665,1782858644000,-500.0,0.00029863,7]
[426809666,1782858644000,-500.0,0.00029863,7]
[426809668,1782858644000,-500.0,0.00029863,7]
[426809667,1782858644000,-500.0,0.00029863,7]
[426809670,1782858644000,-500.0,0.00029863,7]
[426809671,1782858644000,-222.81,0.00029863,7]
[426809642,1782858644000,-500.0,0.00029863,7]
[426809640,1782858644000,-644.09,0.00029863,7]
[426809611,1782858644000,-500.0,0.00029863,7]
[426809648,1782858644000,-593.02,0.00029863,7]
[426809610,1782858644000,-501.24872044,0.00029863,7]
[426809615,1782858644000,-500.0,0.00029863,7]
[426809612,1782858644000,-500.0,0.00029863,7]
[426809616,1782858644000,-500.0,0.00029863,7]
[426809621,1782858644000,-500.0,0.00029863,7]
[426809622,1782858644000,-500.0,0.00029863,7]
[426809614,1782858644000,-500.0,0.00029863,7]
[426809637,1782858644000,-500.0,0.00029863,7]
[426809620,1782858644000,-500.0,0.00029863,7]
[426809618,1782858644000,-500.0,0.00029863,7]
[426809619,1782858644000,-500.0,0.00029863,7]
[426809623,1782858644000,-500.0,0.00029863,7]
[426809626,1782858644000,-438.97,0.00029863,7]
[426809624,1782858644000,-500.0,0.00029863,7]
[426809617,1782858644000,-634.29,0.00029863,7]
[426809627,1782858644000,-500.0,0.00029863,7]
[426809625,1782858644000,-500.0,0.00029863,7]
[426809639,1782858644000,-500.0,0.00029863,7]
[426809647,1782858644000,-500.0,0.00029863,7]
[426809645,1782858644000,-500.0,0.00029863,7]